fUST/lending_fUST_20250708
["ID","MTS","AMOUNT","RATE_DAILY","PERIOD"]
[370255092,1751925042528,-460.0,0.00019178,2]
[370255094,1751925042537,-460.0,0.00019178,2]
[370255096,1751925042547,-831.79,0.00019178,2]
[370255098,1751925042556,-460.0,0.00019178,2]
[370255100,1751925042565,-460.0,0.00019178,2]
[370255102,1751925042575,-460.0,0.00019178,2]
[370255104,1751925042585,-460.0,0.00019178,2]
[370255106,1751925042594,-3072.42,0.00019178,2]
[370255108,1751925042605,-211.63869696,0.00019178,2]
[370255110,1751925042614,-460.0,0.00019178,2]
[370255112,1751925042624,-823.16,0.00019178,2]
[370255114,1751925042634,-460.0,0.00019178,2]
[370255116,1751925042643,-464.73,0.00019178,2]
[370255118,1751925042652,-509.86,0.00019178,2]
[370255120,1751925042663,-462.64575202,0.00019178,2]
[370255122,1751925042672,-2855.16,0.00019178,2]
[370255124,1751925042682,-461.90533442,0.00019178,2]
[370255126,1751925042691,-529.0,0.00019206,2]
[370255128,1751925042700,-356.9902297,0.000193,2]
[370255130,1751925042710,-9031.55210433,0.000194,2]
[370255132,1751925042719,-1182.2930977,0.00019425,2]
[370255134,1751925042728,-3116.556923,0.00019425,2]
[370255136,1751925042738,-151.0,0.00019452,2]
[370255138,1751925042747,-151.0,0.00019452,2]
[370255140,1751925042757,-151.0,0.00019452,2]
[370255142,1751925042766,-151.0,0.00019452,2]
[370255144,1751925042776,-460.0,0.00019452,2]
[370255146,1751925042785,-450.74090103,0.00019452,2]
[370255148,1751925042794,-151.0,0.00019452,2]
[370255150,1751925042804,-151.0,0.00019452,2]
[370255151,1751925042813,-230.322291,0.00019452,2]
[370255153,1751925042823,-230.322291,0.00019452,2]
[370255155,1751925042832,-460.0,0.00019452,2]
[370255157,1751925042841,-460.0,0.00019452,2]
[370255159,1751925042851,-169.66107823,0.00019452,2]
[370255161,1751925042861,-232.206188,0.00019452,2]
[370255163,1751925042870,-232.206188,0.00019452,2]
[370255165,1751925042879,-460.0,0.00019452,2]
[370255167,1751925042888,-460.0,0.00019452,2]
[370255169,1751925042898,-460.0,0.00019452,2]
[370255171,1751925042908,-460.0,0.00019452,2]
[370255173,1751925042917,-379.70072189,0.00019452,2]
[370255175,1751925042927,-460.0,0.00019452,2]
[370255177,1751925042936,-605.34475596,0.00019452,2]
[370255179,1751925042945,-460.0,0.00019452,2]
[370255182,1751925042955,-460.0,0.00019452,2]
[370255184,1751925042964,-460.0,0.00019452,2]
[370255186,1751925042973,-460.0,0.00019452,2]
[370255188,1751925042983,-460.0,0.00019452,2]
[370255190,1751925042992,-460.0,0.00019452,2]
[370255192,1751925043001,-460.0,0.00019452,2]
[370255194,1751925043011,-460.0,0.00019452,2]
[370255196,1751925043020,-460.0,0.00019452,2]
[370255198,1751925043030,-460.0,0.00019452,2]
[370255200,1751925043039,-460.0,0.00019452,2]
[370255202,1751925043156,-151.0,0.00019452,2]
[370255204,1751925043165,-460.0,0.00019452,2]
[370255205,1751925043174,-576.39252285,0.00019452,2]
[370255207,1751925043183,-460.0,0.00019452,2]
[370255209,1751925043193,-460.0,0.00019452,2]
[370255211,1751925043203,-460.0,0.00019452,2]
[370255214,1751925043212,-460.0,0.00019452,2]
[370255217,1751925043221,-461.82,0.00019452,2]
[370255220,1751925043231,-460.0,0.00019452,2]
[370255223,1751925043240,-460.0,0.00019452,2]
[370255226,1751925043251,-460.0,0.00019452,2]
[370255230,1751925043262,-460.0,0.00019452,2]
[370255234,1751925043271,-460.0,0.00019452,2]
[370255238,1751925043280,-460.0,0.00019452,2]
[370255240,1751925043290,-151.0,0.00019452,2]
[370255244,1751925043299,-460.0,0.00019452,2]
[370255246,1751925043309,-460.0,0.00019452,2]
[370255250,1751925043318,-502.81474646,0.00019452,2]
[370255252,1751925043327,-528.21205149,0.00019452,2]
[370255256,1751925043337,-460.0,0.00019452,2]
[370255259,1751925043346,-460.0,0.00019452,2]
[370255261,1751925043355,-527.73,0.00019452,2]
[370255264,1751925043364,-460.0,0.00019452,2]
[370255267,1751925043373,-460.0,0.00019452,2]
[370255270,1751925043383,-391.9230548,0.00019452,2]
[370255273,1751925043392,-460.0,0.00019452,2]
[370255275,1751925043401,-495.72651481,0.00019452,2]
[370255278,1751925043412,-460.0,0.00019452,2]
[370255281,1751925043422,-460.0,0.00019452,2]
[370255285,1751925043435,-460.0,0.00019452,2]
[370255287,1751925043444,-460.0,0.00019452,2]
[370255290,1751925043454,-573.03499489,0.00019452,2]
[370255293,1751925043464,-460.0,0.00019452,2]
[370255296,1751925043473,-460.0,0.00019452,2]
[370255299,1751925043482,-460.0,0.00019452,2]
[370255303,1751925043492,-460.0,0.00019452,2]
[370255306,1751925043501,-460.0,0.00019452,2]
[370255308,1751925043510,-460.0,0.00019452,2]
[370255312,1751925043520,-151.0,0.00019452,2]
[370255315,1751925043530,-151.0,0.00019452,2]
[370255317,1751925043540,-151.0,0.00019452,2]
[370255319,1751925043549,-460.0,0.00019452,2]
[370255321,1751925043558,-460.0,0.00019452,2]
[370255323,1751925043568,-460.0,0.00019452,2]
[370255325,1751925043579,-460.0,0.00019452,2]
[370255327,1751925043589,-460.0,0.00019452,2]
[370255329,1751925043598,-460.0,0.00019452,2]
[370255331,1751925043607,-313.98,0.00019452,2]
[370255333,1751925043616,-460.0,0.00019452,2]
[370255335,1751925043626,-1147.24,0.00019452,2]
[370255337,1751925043635,-460.0,0.00019452,2]
[370255339,1751925043645,-197.747247,0.00019452,2]
[370255341,1751925043654,-460.0,0.00019452,2]
[370255343,1751925043664,-488.24,0.00019452,2]
[370255345,1751925043673,-460.0,0.00019452,2]
[370255347,1751925043682,-264.262535,0.00019452,2]
[370255349,1751925043692,-463.27550058,0.00019452,2]
[370255351,1751925043701,-684.11,0.00019452,2]
[370255353,1751925043711,-460.0,0.00019452,2]
[370255355,1751925043720,-1911.19,0.00019452,2]
[370255357,1751925043730,-970.06,0.00019452,2]
[370255359,1751925043739,-539.66,0.00019452,2]
[370255361,1751925043748,-460.0,0.00019452,2]
[370255363,1751925043757,-460.0,0.00019452,2]
[370255365,1751925043767,-527.82,0.00019452,2]
[370255368,1751925043776,-605.36,0.00019452,2]
[370255371,1751925043785,-460.0,0.00019452,2]
[370255374,1751925043795,-460.0,0.00019452,2]
[370255377,1751925043804,-897.609996,0.00019452,2]
[370255379,1751925043814,-460.0,0.00019452,2]
[370255381,1751925043823,-151.0,0.00019452,2]
[370255383,1751925043832,-460.0,0.00019452,2]
[370255385,1751925043841,-897.609996,0.00019452,2]
[370255387,1751925043851,-460.0,0.00019452,2]
[370255389,1751925043860,-231.44483195,0.00019452,2]
[370255391,1751925043869,-460.0,0.00019452,2]
[370255393,1751925043878,-460.0,0.00019452,2]
[370255395,1751925043888,-2597.78,0.00019452,2]
[370255397,1751925043897,-460.0,0.00019452,2]
[370255399,1751925043906,-500.0,0.00019452,2]
[370255401,1751925043916,-1549.12,0.00019452,2]
[370255416,1751925044049,-490.25,0.00019452,2]
[370255418,1751925044059,-460.0,0.00019452,2]
[370255420,1751925044069,-1956.16,0.00019452,2]
[370255422,1751925044078,-2893.7,0.00019452,2]
[370255424,1751925044088,-236.85696148,0.00019452,2]
[370255426,1751925044097,-945.48,0.00019452,2]
[370255428,1751925044106,-460.0,0.00019452,2]
[370255430,1751925044115,-460.0,0.00019452,2]
[370255432,1751925044125,-460.0,0.00019452,2]
[370255434,1751925044134,-460.0,0.00019452,2]
[370255436,1751925044143,-491.99,0.00019452,2]
[370255438,1751925044152,-151.0,0.00019452,2]
[370255440,1751925044161,-460.0,0.00019452,2]
[370255442,1751925044171,-460.0,0.00019452,2]
[370255444,1751925044179,-485.42,0.00019452,2]
[370255446,1751925044189,-460.0,0.00019452,2]
[370255448,1751925044198,-1446.29,0.00019452,2]
[370255450,1751925044208,-460.0,0.00019452,2]
[370255452,1751925044217,-460.0,0.00019452,2]
[370255454,1751925044227,-4209.97,0.00019452,2]
[370255456,1751925044236,-4829.11,0.00019452,2]
[370255458,1751925044246,-460.0,0.00019452,2]
[370255460,1751925044256,-460.0,0.00019452,2]
[370255462,1751925044265,-553.25,0.00019452,2]
[370255464,1751925044275,-460.0,0.00019452,2]
[370255466,1751925044286,-460.0,0.00019452,2]
[370255468,1751925044298,-1165.06,0.00019452,2]
[370255470,1751925044308,-537.96,0.00019452,2]
[370255472,1751925044319,-352.30988619,0.00019452,2]
[370255474,1751925044330,-967.6,0.00019452,2]
[370255476,1751925044340,-460.0,0.00019452,2]
[370255478,1751925044350,-460.0,0.00019452,2]
[370255480,1751925044360,-460.0,0.00019452,2]
[370255482,1751925044369,-1693.79,0.00019452,2]
[370255484,1751925044379,-460.0,0.00019452,2]
[370255486,1751925044390,-460.0,0.00019452,2]
[370255488,1751925044399,-460.0,0.00019452,2]
[370255490,1751925044409,-460.0,0.00019452,2]
[370255492,1751925044418,-460.0,0.00019452,2]
[370255494,1751925044432,-460.0,0.00019452,2]
[370255496,1751925044442,-460.0,0.00019452,2]
[370255498,1751925044451,-460.0,0.00019452,2]
[370255500,1751925044461,-460.0,0.00019452,2]
[370255502,1751925044471,-151.0,0.00019452,2]
[370255504,1751925044480,-460.0,0.00019452,2]
[370255506,1751925044489,-460.0,0.00019452,2]
[370255508,1751925044499,-460.0,0.00019452,2]
[370255510,1751925044511,-460.0,0.00019452,2]
[370255512,1751925044521,-3213.48,0.00019452,2]
[370255514,1751925044530,-1919.53,0.00019452,2]
[370255516,1751925044540,-151.0,0.00019452,2]
[370255518,1751925044550,-678.82,0.00019452,2]
[370255520,1751925044559,-151.0,0.00019452,2]
[370255522,1751925044569,-245.0,0.00019452,2]
[370255524,1751925044579,-766.2,0.00019452,2]
[370255526,1751925044589,-460.0,0.00019452,2]
[370255528,1751925044599,-507.63,0.00019452,2]
[370255530,1751925044608,-230.71,0.00019452,2]
[370255532,1751925044617,-1592.05,0.00019452,2]
[370255535,1751925044627,-460.0,0.00019452,2]
[370255537,1751925044636,-460.0,0.00019452,2]
[370255538,1751925044645,-460.0,0.00019452,2]
[370255540,1751925044654,-522.77,0.00019452,2]
[370255542,1751925044664,-460.0,0.00019452,2]
[370255545,1751925044674,-460.0,0.00019452,2]
[370255547,1751925044683,-460.0,0.00019452,2]
[370255548,1751925044692,-577.04091537,0.00019452,2]
[370255551,1751925044702,-2064.93,0.00019452,2]
[370255553,1751925044711,-460.0,0.00019452,2]
[370255555,1751925044729,-460.0,0.00019452,2]
[370255557,1751925044738,-460.0,0.00019452,2]
[370255559,1751925044748,-460.0,0.00019452,2]
[370255561,1751925044757,-460.0,0.00019452,2]
[370255563,1751925044767,-460.0,0.00019452,2]
[370255565,1751925044776,-460.0,0.00019452,2]
[370255567,1751925044786,-460.0,0.00019452,2]
[370255569,1751925044795,-560.0,0.00019452,2]
[370255570,1751925044805,-491.54,0.00019452,2]
[370255571,1751925044814,-2099.61,0.00019452,2]
[370255572,1751925044823,-831.79,0.00019452,2]
[370255573,1751925044832,-460.0,0.00019452,2]
[370255574,1751925044842,-460.0,0.00019452,2]
[370255576,1751925044852,-3072.42,0.00019452,2]
[370255578,1751925044861,-823.16,0.00019452,2]
[370255580,1751925044870,-155.0,0.00019452,2]
[370255582,1751925044880,-460.0,0.00019452,2]
[370255584,1751925044889,-464.73,0.00019452,2]
[370255586,1751925044899,-509.86,0.00019452,2]
[370255588,1751925044909,-2855.16,0.00019452,2]
[370255590,1751925044918,-500.0,0.00019479,2]
[370255592,1751925044928,-500.0,0.00019507,2]
[370255594,1751925044937,-5136.33685932,0.00019532,2]
[370255596,1751925044946,-1978.68772608,0.00019532,2]
[370255598,1751925044955,-2381.78458594,0.00019534,2]
[370255600,1751925044964,-500.0,0.00019534,2]
[370255602,1751925044974,-168.0,0.00019535,2]
[370255604,1751925044983,-500.0,0.00019562,2]
[370255607,1751925044992,-500.0,0.00019589,2]
[370255609,1751925045001,-500.0,0.00019616,2]
[370255611,1751925045010,-500.0,0.00019644,2]
[370255612,1751925045019,-500.0,0.00019671,2]
[370255615,1751925045029,-500.0,0.00019699,2]
[370255616,1751925045038,-500.0,0.00019721,2]
[370255619,1751925045047,-1000.0,0.00019721,2]
[370255620,1751925045056,-1000.0,0.00019721,2]
[370255623,1751925045065,-151.0,0.00019721,2]
[370255625,1751925045074,-188.26018,0.00019721,2]
[370255626,1751925045083,-500.0,0.00019724,2]
[370255629,1751925045092,-491.21396874,0.00019724,2]
[370255631,1751925045102,-500.0,0.00019724,2]
[370255632,1751925045112,-500.0,0.00019724,2]
[370255635,1751925045122,-500.0,0.00019724,2]
[370255637,1751925045132,-500.0,0.00019724,2]
[370255639,1751925045141,-500.0,0.00019724,2]
[370255641,1751925045151,-500.0,0.00019724,2]
[370255643,1751925045160,-500.0,0.00019724,2]
[370255645,1751925045170,-500.0,0.00019724,2]
[370255647,1751925045179,-500.0,0.00019724,2]
[370255649,1751925045189,-500.0,0.00019724,2]
[370255651,1751925045199,-500.0,0.00019724,2]
[370255653,1751925045208,-500.0,0.00019724,2]
[370255655,1751925045218,-151.0,0.00019725,2]
[370255657,1751925045227,-151.0,0.00019725,2]
[370255659,1751925045237,-151.0,0.00019725,2]
[370255661,1751925045246,-151.0,0.00019725,2]
[370255663,1751925045256,-687.014509,0.00019725,2]
[370255665,1751925045265,-687.014509,0.00019725,2]
[370255667,1751925045274,-500.0,0.00019726,2]
[370255669,1751925045283,-151.0,0.00019726,2]
[370255671,1751925045293,-151.0,0.00019726,2]
[370255673,1751925045302,-151.0,0.00019726,2]
[370255675,1751925045311,-151.0,0.00019726,2]
[370255677,1751925045321,-178.657147,0.00019726,2]
[370255679,1751925045330,-178.657147,0.00019726,2]
[370255681,1751925045340,-151.0,0.00019726,2]
[370255683,1751925045349,-151.0,0.00019726,2]
[370255685,1751925045359,-151.0,0.00019726,2]
[370255687,1751925045368,-151.663298,0.00019726,2]
[370255689,1751925045378,-237.481084,0.00019726,2]
[370255691,1751925045387,-237.481084,0.00019726,2]
[370255693,1751925045397,-151.0,0.00019726,2]
[370255695,1751925045406,-190.792456,0.00019726,2]
[370255697,1751925045416,-151.0,0.00019726,2]
[370255699,1751925045426,-151.0,0.00019726,2]
[370255701,1751925045436,-151.0,0.00019726,2]
[370255703,1751925045445,-151.0,0.00019726,2]
[370255705,1751925045455,-151.0,0.00019726,2]
[370255707,1751925045464,-151.0,0.00019726,2]
[370255709,1751925045475,-151.0,0.00019726,2]
[370255711,1751925045484,-230.322291,0.00019726,2]
[370255713,1751925045494,-230.322291,0.00019726,2]
[370255715,1751925045507,-230.322291,0.00019726,2]
[370255717,1751925045517,-230.322291,0.00019726,2]
[370255719,1751925045526,-460.0,0.00019726,2]
[370255721,1751925045535,-460.0,0.00019726,2]
[370255723,1751925045544,-232.206188,0.00019726,2]
[370255725,1751925045554,-232.206188,0.00019726,2]
[370255727,1751925045563,-232.206188,0.00019726,2]
[370255729,1751925045573,-232.206188,0.00019726,2]
[370255731,1751925045583,-460.0,0.00019726,2]
[370255733,1751925045593,-460.0,0.00019726,2]
[370255735,1751925045603,-151.0,0.00019726,2]
[370255737,1751925045612,-151.0,0.00019726,2]
[370255739,1751925045622,-460.0,0.00019726,2]
[370255741,1751925045632,-151.0,0.00019726,2]
[370255743,1751925045641,-460.0,0.00019726,2]
[370255745,1751925045650,-151.0,0.00019726,2]
[370255747,1751925045660,-151.0,0.00019726,2]
[370255749,1751925045670,-460.0,0.00019726,2]
[370255751,1751925045679,-238.60564245,0.00019726,2]
[370255753,1751925045688,-460.0,0.00019726,2]
[370255755,1751925045698,-249.69076425,0.00019726,2]
[370255757,1751925045707,-460.0,0.00019726,2]
[370255759,1751925045716,-460.0,0.00019726,2]
[370255761,1751925045726,-175.471602,0.00019726,2]
[370255763,1751925045735,-460.0,0.00019726,2]
[370255765,1751925045745,-460.0,0.00019726,2]
[370255767,1751925045755,-262.469845,0.00019726,2]
[370255770,1751925045764,-151.0,0.00019726,2]
[370255772,1751925045773,-151.0,0.00019726,2]
[370255774,1751925045782,-151.0,0.00019726,2]
[370255776,1751925045792,-262.469845,0.00019726,2]
[370255778,1751925045801,-151.0,0.00019726,2]
[370255780,1751925045810,-460.0,0.00019726,2]
[370255782,1751925045819,-460.0,0.00019726,2]
[370255784,1751925045828,-460.0,0.00019726,2]
[370255785,1751925045837,-460.0,0.00019726,2]
[370255788,1751925045847,-460.0,0.00019726,2]
[370255790,1751925045856,-151.0,0.00019726,2]
[370255792,1751925045865,-151.0,0.00019726,2]
[370255794,1751925045876,-460.0,0.00019726,2]
[370255796,1751925045886,-460.0,0.00019726,2]
[370255797,1751925045896,-460.0,0.00019726,2]
[370255800,1751925045906,-460.0,0.00019726,2]
[370255805,1751925045948,-460.0,0.00019726,2]
[370255807,1751925045958,-151.0,0.00019726,2]
[370255809,1751925045967,-151.0,0.00019726,2]
[370255811,1751925045978,-151.0,0.00019726,2]
[370255813,1751925045987,-460.0,0.00019726,2]
[370255815,1751925045996,-460.0,0.00019726,2]
[370255817,1751925046006,-460.0,0.00019726,2]
[370255819,1751925046015,-527.73,0.00019726,2]
[370255821,1751925046024,-460.0,0.00019726,2]
[370255823,1751925046033,-405.4949977,0.00019726,2]
[370255825,1751925046043,-460.0,0.00019726,2]
[370255827,1751925046052,-460.0,0.00019726,2]
[370255829,1751925046061,-460.0,0.00019726,2]
[370255831,1751925046071,-460.0,0.00019726,2]
[370255833,1751925046080,-460.0,0.00019726,2]
[370255835,1751925046089,-229.05,0.00019726,2]
[370255837,1751925046098,-460.0,0.00019726,2]
[370255839,1751925046107,-464.52565378,0.00019726,2]
[370255841,1751925046117,-460.0,0.00019726,2]
[370255843,1751925046126,-460.0,0.00019726,2]
[370255845,1751925046135,-151.0,0.00019726,2]
[370255847,1751925046144,-151.0,0.00019726,2]
[370255849,1751925046154,-151.0,0.00019726,2]
[370255851,1751925046163,-460.0,0.00019726,2]
[370255853,1751925046172,-460.0,0.00019726,2]
[370255855,1751925046182,-460.0,0.00019726,2]
[370255857,1751925046191,-460.0,0.00019726,2]
[370255859,1751925046201,-460.0,0.00019726,2]
[370255861,1751925046210,-506.0,0.00019726,2]
[370255863,1751925046221,-1147.24,0.00019726,2]
[370255865,1751925046230,-460.0,0.00019726,2]
[370255867,1751925046241,-460.0,0.00019726,2]
[370255869,1751925046250,-488.24,0.00019726,2]
[370255871,1751925046259,-460.0,0.00019726,2]
[370255873,1751925046269,-684.11,0.00019726,2]
[370255875,1751925046278,-460.0,0.00019726,2]
[370255877,1751925046288,-1911.19,0.00019726,2]
[370255879,1751925046298,-970.06,0.00019726,2]
[370255881,1751925046308,-539.66,0.00019726,2]
[370255884,1751925046318,-460.0,0.00019726,2]
[370255885,1751925046328,-460.0,0.00019726,2]
[370255888,1751925046337,-527.82,0.00019726,2]
[370255890,1751925046347,-605.36,0.00019726,2]
[370255892,1751925046356,-460.0,0.00019726,2]
[370255894,1751925046365,-460.0,0.00019726,2]
[370255896,1751925046374,-897.609996,0.00019726,2]
[370255898,1751925046383,-460.0,0.00019726,2]
[370255900,1751925046392,-460.0,0.00019726,2]
[370255901,1751925046401,-897.609996,0.00019726,2]
[370255904,1751925046412,-460.0,0.00019726,2]
[370255906,1751925046423,-460.0,0.00019726,2]
[370255908,1751925046434,-460.0,0.00019726,2]
[370255909,1751925046444,-2597.78,0.00019726,2]
[370255911,1751925046453,-460.0,0.00019726,2]
[370255914,1751925046463,-1549.12,0.00019726,2]
[370255916,1751925046474,-490.25,0.00019726,2]
[370255918,1751925046483,-460.0,0.00019726,2]
[370255920,1751925046494,-1956.16,0.00019726,2]
[370255921,1751925046505,-2893.7,0.00019726,2]
[370255923,1751925046515,-945.48,0.00019726,2]
[370255925,1751925046524,-460.0,0.00019726,2]
[370255927,1751925046533,-460.0,0.00019726,2]
[370255929,1751925046542,-460.0,0.00019726,2]
[370255931,1751925046551,-460.0,0.00019726,2]
[370255933,1751925046560,-491.99,0.00019726,2]
[370255935,1751925046570,-151.0,0.00019726,2]
[370255937,1751925046580,-460.0,0.00019726,2]
[370255939,1751925046589,-460.0,0.00019726,2]
[370255941,1751925046600,-1446.29,0.00019726,2]
[370255943,1751925046609,-460.0,0.00019726,2]
[370255945,1751925046618,-460.0,0.00019726,2]
[370255947,1751925046627,-4209.97,0.00019726,2]
[370255949,1751925046637,-687.014509,0.00019726,2]
[370255951,1751925046646,-4829.11,0.00019726,2]
[370255953,1751925046655,-687.014509,0.00019726,2]
[370255955,1751925046665,-460.0,0.00019726,2]
[370255957,1751925046675,-460.0,0.00019726,2]
[370255959,1751925046684,-553.25,0.00019726,2]
[370255961,1751925046694,-460.0,0.00019726,2]
[370255963,1751925046703,-460.0,0.00019726,2]
[370255965,1751925046714,-1165.06,0.00019726,2]
[370255967,1751925046724,-537.96,0.00019726,2]
[370255970,1751925046733,-967.6,0.00019726,2]
[370255972,1751925046743,-460.0,0.00019726,2]
[370255974,1751925046752,-460.0,0.00019726,2]
[370255976,1751925046762,-460.0,0.00019726,2]
[370255978,1751925046771,-1693.79,0.00019726,2]
[370255980,1751925046781,-460.0,0.00019726,2]
[370255982,1751925046791,-460.0,0.00019726,2]
[370255984,1751925046801,-460.0,0.00019726,2]
[370255986,1751925046811,-460.0,0.00019726,2]
[370255988,1751925046820,-460.0,0.00019726,2]
[370255990,1751925046830,-460.0,0.00019726,2]
[370255992,1751925046839,-460.0,0.00019726,2]
[370255994,1751925046849,-506.48685554,0.00019726,2]
[370255996,1751925046859,-151.0,0.00019726,2]
[370255998,1751925046868,-460.0,0.00019726,2]
[370256000,1751925046878,-460.0,0.00019726,2]
[370256002,1751925046887,-460.0,0.00019726,2]
[370256004,1751925046897,-460.0,0.00019726,2]
[370256006,1751925046906,-3213.48,0.00019726,2]
[370256009,1751925046916,-1919.53,0.00019726,2]
[370256011,1751925046925,-151.0,0.00019726,2]
[370256013,1751925046935,-678.82,0.00019726,2]
[370256014,1751925046944,-460.0,0.00019726,2]
[370256017,1751925046953,-766.2,0.00019726,2]
[370256019,1751925046962,-507.63,0.00019726,2]
[370256021,1751925046972,-1592.05,0.00019726,2]
[370256023,1751925046981,-460.0,0.00019726,2]
[370256025,1751925046990,-551.4,0.00019726,2]
[370256027,1751925047000,-460.0,0.00019726,2]
[370256029,1751925047009,-522.77,0.00019726,2]
[370256031,1751925047018,-460.0,0.00019726,2]
[370256033,1751925047027,-460.0,0.00019726,2]
[370256035,1751925047036,-460.0,0.00019726,2]
[370256037,1751925047046,-2064.93,0.00019726,2]
[370256039,1751925047055,-460.0,0.00019726,2]
[370256041,1751925047064,-460.0,0.00019726,2]
[370256043,1751925047074,-339.77782862,0.00019726,2]
[370256045,1751925047084,-460.0,0.00019726,2]
[370256047,1751925047093,-460.0,0.00019726,2]
[370256049,1751925047103,-460.0,0.00019726,2]
[370256051,1751925047112,-460.0,0.00019726,2]
[370256053,1751925047122,-491.54,0.00019726,2]
[370256055,1751925047131,-2099.61,0.00019726,2]
[370256057,1751925047140,-831.79,0.00019726,2]
[370256059,1751925047150,-460.0,0.00019726,2]
[370256061,1751925047160,-460.0,0.00019726,2]
[370256063,1751925047170,-3072.42,0.00019726,2]
[370256065,1751925047179,-823.16,0.00019726,2]
[370256067,1751925047189,-460.0,0.00019726,2]
[370256069,1751925047199,-464.73,0.00019726,2]
[370256071,1751925047208,-509.86,0.00019726,2]
[370256073,1751925047217,-2855.16,0.00019726,2]
[370256075,1751925047227,-471.62313157,0.00019753,2]
[370256077,1751925047236,-1203.0,0.00019762,2]
[370256079,1751925047246,-151.0,0.000199,2]
[370256082,1751925047256,-3124.84048617,0.000199,2]
[370256084,1751925047266,-1340.41091978,0.00019931,2]
[370256086,1751925047275,-160.0,0.00019952,2]
[370256088,1751925047285,-160.0,0.00019952,2]
[370256090,1751925047294,-160.0,0.00019952,2]
[370256092,1751925047303,-160.0,0.00019952,2]
[370256094,1751925047312,-160.0,0.00019952,2]
[370256096,1751925047324,-160.0,0.00019952,2]
[370256098,1751925047334,-214.06929976,0.00019952,2]
[370256100,1751925047343,-160.0,0.00019952,2]
[370256102,1751925047352,-848.27993403,0.00019952,2]
[370256104,1751925047362,-160.0,0.00019952,2]
[370256106,1751925047371,-215.21338352,0.00019952,2]
[370256108,1751925047381,-160.0,0.00019952,2]
[370256110,1751925047390,-12584.46609586,0.00019952,2]
[370256112,1751925047400,-230.48668418,0.00019952,2]
[370256114,1751925047409,-837.79946008,0.00019952,2]
[370256116,1751925047419,-160.0,0.00019952,2]
[370256118,1751925047431,-245.373361,0.00019952,2]
[370256120,1751925047440,-151.0,0.00019952,2]
[370256122,1751925047450,-897.609996,0.00019952,2]
[370256124,1751925047459,-897.609996,0.00019952,2]
[370256126,1751925047468,-246.811581,0.00019952,2]
[370256128,1751925047478,-1978.68772608,0.00019986,2]
[370256130,1751925047488,-151.0,0.00019989,2]
[370256132,1751925047498,-151.0,0.00019999,2]
[370256134,1751925047508,-178.657147,0.00019999,2]
[370256136,1751925047518,-178.657147,0.00019999,2]
[370256138,1751925047527,-151.0,0.0002,2]
[370256140,1751925047537,-151.0,0.0002,2]
[370256142,1751925047547,-151.0,0.0002,2]
[370256144,1751925047556,-151.0,0.0002,2]
[370256146,1751925047565,-151.0,0.0002,2]